Workbook

Sheet Employee information
A2: Employee information
A3: [Company Name]
A4: Employee ID | B4: Employee name | C4: Hourly wage | D4: Tax status | E4: Tax allowance (if applicable) | F4: Student loan | G4: Income tax (based on tax allowance) | H4: National Insurance | I4: Medical insurance | J4: Total taxes withheld | K4: Insurance deduction | L4: Other regular deduction | M4: Total regular deductions (excluding taxes)
A5: 1 | B5: Jesper Aaberg | C5: £10.00 | D5: 1 | E5: 4 | F5: 2.30% | G5: 28.00% | H5: 6.30% | I5: 1.45% | J5: =Table1[[#This Row],[Student loan]]+Table1[[#This Row],[Income tax (based on tax allowance)]]+Table1[[#This Row],[National Insurance]]+Table1[[#This Row],[Medical insurance]] -> 38.05% | K5: £20.00 | L5: £40.00 | M5: =Table1[[#This Row],[Insurance deduction]]+Table1[[#This Row],[Other regular deduction]] -> £60.00
A6: 2 | B6: Wilson Pais | C6: £13.00 | D6: 1 | E6: 4 | F6: 2.30% | G6: 28.00% | H6: 6.30% | I6: 1.45% | J6: =Table1[[#This Row],[Student loan]]+Table1[[#This Row],[Income tax (based on tax allowance)]]+Table1[[#This Row],[National Insurance]]+Table1[[#This Row],[Medical insurance]] -> 38.05% | K6: £20.00 | L6: £52.00 | M6: =Table1[[#This Row],[Insurance deduction]]+Table1[[#This Row],[Other regular deduction]] -> £72.00
A7: 3 | B7: Kathie Flood | C7: £10.00 | D7: 1 | E7: 4 | F7: 2.30% | G7: 28.00% | H7: 6.30% | I7: 1.45% | J7: =Table1[[#This Row],[Student loan]]+Table1[[#This Row],[Income tax (based on tax allowance)]]+Table1[[#This Row],[National Insurance]]+Table1[[#This Row],[Medical insurance]] -> 38.05% | K7: £20.00 | L7: 0 | M7: =Table1[[#This Row],[Insurance deduction]]+Table1[[#This Row],[Other regular deduction]] -> £20.00

Sheet Payroll calculator
A1: Payroll calculator
J2: Period ending: | K2: 4568800.00%
A3: ='Employee information'!$A$3 -> [Company Name]
A4: Employee ID | B4: Employee name | C4: Regular hours worked | D4: Holiday hours | E4: Sick hours | F4: Overtime hours | G4: Overtime rate | H4: Gross pay | I4: Taxes and deductions | J4: Other deduction | K4: Net pay
A5: 1 | B5: =VLOOKUP(A5,Table1[],2,FALSE) -> Jesper Aaberg | C5: 50.00 | D5: 5.00 | E5: 1.00 | H5: =(VLOOKUP(A5,Table1[],3,FALSE)*(Table2[[#This Row],[Regular hours worked]]+Table2[[#This Row],[Holiday hours]]+Table2[[#This Row],[Sick hours]])+Table2[[#This Row],[Overtime hours]]*Table2[[#This Row],[Overtime rate]]) -> £560.00 | I5: =VLOOKUP(A5,Table1[],10,FALSE)*Table2[[#This Row],[Gross pay]]+Table1[[#This Row],[Total regular deductions (excluding taxes)]] -> £273.08 | J5: £20.00 | K5: =Table2[[#This Row],[Gross pay]]-Table2[[#This Row],[Taxes and deductions ]]-Table2[[#This Row],[Other deduction]] -> £266.92
A6: 2 | B6: =VLOOKUP(A6,Table1[],2,FALSE) -> Wilson Pais | C6: 40.00 | D6: 0.00 | E6: 0.00 | H6: =(VLOOKUP(A6,Table1[],3,FALSE)*(Table2[[#This Row],[Regular hours worked]]+Table2[[#This Row],[Holiday hours]]+Table2[[#This Row],[Sick hours]])+Table2[[#This Row],[Overtime hours]]*Table2[[#This Row],[Overtime rate]]) -> £520.00 | I6: =VLOOKUP(A6,Table1[],10,FALSE)*Table2[[#This Row],[Gross pay]]+Table1[[#This Row],[Total regular deductions (excluding taxes)]] -> £269.86 | J6: £52.00 | K6: =Table2[[#This Row],[Gross pay]]-Table2[[#This Row],[Taxes and deductions ]]-Table2[[#This Row],[Other deduction]] -> £198.14
A7: 3 | B7: =VLOOKUP(A7,Table1[],2,FALSE) -> Kathie Flood | C7: 52.00 | D7: 0.00 | E7: 0.00 | F7: 2.00 | G7: £20.00 | H7: =(VLOOKUP(A7,Table1[],3,FALSE)*(Table2[[#This Row],[Regular hours worked]]+Table2[[#This Row],[Holiday hours]]+Table2[[#This Row],[Sick hours]])+Table2[[#This Row],[Overtime hours]]*Table2[[#This Row],[Overtime rate]]) -> £560.00 | I7: =VLOOKUP(A7,Table1[],10,FALSE)*Table2[[#This Row],[Gross pay]]+Table1[[#This Row],[Total regular deductions (excluding taxes)]] -> £233.08 | J7: £20.00 | K7: =Table2[[#This Row],[Gross pay]]-Table2[[#This Row],[Taxes and deductions ]]-Table2[[#This Row],[Other deduction]] -> £306.92

Sheet Individual payslips
C2: =('Employee information'!$A$3) -> [Company Name]
C3: Period: | D3: ='Payroll calculator'!$K$2 -> 4568800.00% | E3: Employee Name | F3: =IFERROR(VLOOKUP(H3,Table1[],2),"") -> Jesper Aaberg | G3: Employee ID | H3: 1
C5: Tax Status | D5: =IFERROR(VLOOKUP(H3,Table1[],4),"") -> 1 | E5: Tax Allowance (if applicable) | F5: =IFERROR(VLOOKUP(H3,Table1[],5,FALSE),"") -> 4 | G5: Hours Worked | H5: =IFERROR(VLOOKUP(H3,Table2[],3,FALSE),"") -> 50
C6: Hourly Rate | D6: =IFERROR(VLOOKUP(H3,Table1[],3,FALSE),"") -> £10.00 | E6: Overtime Rate | F6: =IFERROR(VLOOKUP(H3,Table2[],7,FALSE),"") -> 0 | G6: Sick Hours | H6: =IFERROR(VLOOKUP(H3,Table2[],5,FALSE),"") -> 1
C7: National Insurance | D7: =IFERROR(IFERROR(VLOOKUP(H3,Table1[],8,FALSE),"")*H9,"") -> £35.28 | E7: Income Tax | F7: =IFERROR(IFERROR(VLOOKUP(H3,Table1[],7,FALSE),"")*H9,"") -> £156.80 | G7: Holiday Hours | H7: =IFERROR(VLOOKUP(H3,Table2[],4,FALSE),"") -> 5
C8: Medical Insurance | D8: =IFERROR(IFERROR(VLOOKUP(H3,Table1[],9,FALSE),"")*H9,"") -> £8.12 | E8: Student loan | F8: =IFERROR(IFERROR(VLOOKUP(H3,Table1[],6,FALSE),"")*H9,"") -> £12.88 | G8: Overtime Hours | H8: =IFERROR(VLOOKUP(H3,Table2[],6,FALSE),"") -> 0
C9: Insurance Deduction | D9: =IFERROR(VLOOKUP(H3,Table1[],11,FALSE),"") -> £20.00 | E9: Other Regular Deduction | F9: =IFERROR(VLOOKUP(H3,Table1[],12,FALSE),"") -> £40.00 | G9: Gross Pay | H9: =IFERROR(VLOOKUP(H3,Table2[],8,FALSE),"") -> £560.00
C10: Total Taxes and Regular Deductions | D10: =IFERROR(SUM(F7:F9)+SUM(D7:D9),"") -> £273.08 | E10: Other Deduction | F10: =IFERROR(VLOOKUP(H3,Table2[],10,FALSE),"") -> £20.00 | G10: Total Taxes and Deductions | H10: =IFERROR(IFERROR(VLOOKUP(H3,Table2[],9,FALSE),"")+F10,"") -> £293.08
G11: Net Pay | H11: =IFERROR(VLOOKUP(H3,Table2[],11,FALSE),"") -> £266.92
C14: =('Employee information'!$A$3) -> [Company Name]
C15: Period: | D15: ='Payroll calculator'!$K$2 -> 4568800.00% | E15: Employee Name | F15: =IFERROR(VLOOKUP(H15,Table1[],2),"") -> Wilson Pais | G15: Employee ID | H15: 2
C17: Tax Status | D17: =IFERROR(VLOOKUP(H15,Table1[],4),"") -> 1 | E17: Tax Allowance (if applicable) | F17: =IFERROR(VLOOKUP(H15,Table1[],5,FALSE),"") -> 4 | G17: Hours Worked | H17: =IFERROR(VLOOKUP(H15,Table2[],3,FALSE),"") -> 40
C18: Hourly Rate | D18: =IFERROR(VLOOKUP(H15,Table1[],3,FALSE),"") -> £13.00 | E18: Overtime Rate | F18: =IFERROR(VLOOKUP(H15,Table2[],7,FALSE),"") -> 0 | G18: Sick Hours | H18: =IFERROR(VLOOKUP(H15,Table2[],5,FALSE),"") -> 0
C19: National Insurance | D19: =IFERROR(IFERROR(VLOOKUP(H15,Table1[],8,FALSE),"")*H21,"") -> £32.76 | E19: Income Tax | F19: =IFERROR(IFERROR(VLOOKUP(H15,Table1[],7,FALSE),"")*H21,"") -> £145.60 | G19: Holiday Hours | H19: =IFERROR(VLOOKUP(H15,Table2[],4,FALSE),"") -> 0
C20: Medical Insurance | D20: =IFERROR(IFERROR(VLOOKUP(H15,Table1[],9,FALSE),"")*H21,"") -> £7.54 | E20: Student loan | F20: =IFERROR(IFERROR(VLOOKUP(H15,Table1[],6,FALSE),"")*H21,"") -> £11.96 | G20: Overtime Hours | H20: =IFERROR(VLOOKUP(H15,Table2[],6,FALSE),"") -> 0
C21: Insurance Deduction | D21: =IFERROR(VLOOKUP(H15,Table1[],11,FALSE),"") -> £20.00 | E21: Other Regular Deduction | F21: =IFERROR(VLOOKUP(H15,Table1[],12,FALSE),"") -> £52.00 | G21: Gross Pay | H21: =IFERROR(VLOOKUP(H15,Table2[],8,FALSE),"") -> £520.00
C22: Total Taxes and Regular Deductions | D22: =IFERROR(SUM(F19:F21)+SUM(D19:D21),"") -> £269.86 | E22: Other Deduction | F22: =IFERROR(VLOOKUP(H15,Table2[],10,FALSE),"") -> £52.00 | G22: Total Taxes and Deductions | H22: =IFERROR(IFERROR(VLOOKUP(H15,Table2[],9,FALSE),"")+F22,"") -> £321.86
G23: Net Pay | H23: =IFERROR(VLOOKUP(H15,Table2[],11,FALSE),"") -> £198.14
C26: =('Employee information'!$A$3) -> [Company Name]
C27: Period: | D27: ='Payroll calculator'!$K$2 -> 4568800.00% | E27: Employee Name | F27: =IFERROR(VLOOKUP(H27,Table1[],2),"") -> Kathie Flood | G27: Employee ID | H27: 3
C29: Tax Status | D29: =IFERROR(VLOOKUP(H27,Table1[],4),"") -> 1 | E29: Tax Allowance (if applicable) | F29: =IFERROR(VLOOKUP(H27,Table1[],5,FALSE),"") -> 4 | G29: Hours Worked | H29: =IFERROR(VLOOKUP(H27,Table2[],3,FALSE),"") -> 52
C30: Hourly Rate | D30: =IFERROR(VLOOKUP(H27,Table1[],3,FALSE),"") -> £10.00 | E30: Overtime Rate | F30: =IFERROR(VLOOKUP(H27,Table2[],7,FALSE),"") -> £20.00 | G30: Sick Hours | H30: =IFERROR(VLOOKUP(H27,Table2[],5,FALSE),"") -> 0
C31: National Insurance | D31: =IFERROR(IFERROR(VLOOKUP(H27,Table1[],8,FALSE),"")*H33,"") -> £35.28 | E31: Income Tax | F31: =IFERROR(IFERROR(VLOOKUP(H27,Table1[],7,FALSE),"")*H33,"") -> £156.80 | G31: Holiday Hours | H31: =IFERROR(VLOOKUP(H27,Table2[],4,FALSE),"") -> 0
C32: Medical Insurance | D32: =IFERROR(IFERROR(VLOOKUP(H27,Table1[],9,FALSE),"")*H33,"") -> £8.12 | E32: Student loan | F32: =IFERROR(IFERROR(VLOOKUP(H27,Table1[],6,FALSE),"")*H33,"") -> £12.88 | G32: Overtime Hours | H32: =IFERROR(VLOOKUP(H27,Table2[],6,FALSE),"") -> 2
C33: Insurance Deduction | D33: =IFERROR(VLOOKUP(H27,Table1[],11,FALSE),"") -> £20.00 | E33: Other Regular Deduction | F33: =IFERROR(VLOOKUP(H27,Table1[],12,FALSE),"") -> 0 | G33: Gross Pay | H33: =IFERROR(VLOOKUP(H27,Table2[],8,FALSE),"") -> £560.00
C34: Total Taxes and Regular Deductions | D34: =IFERROR(SUM(F31:F33)+SUM(D31:D33),"") -> £233.08 | E34: Other Deduction | F34: =IFERROR(VLOOKUP(H27,Table2[],10,FALSE),"") -> £20.00 | G34: Total Taxes and Deductions | H34: =IFERROR(IFERROR(VLOOKUP(H27,Table2[],9,FALSE),"")+F34,"") -> £253.08
G35: Net Pay | H35: =IFERROR(VLOOKUP(H27,Table2[],11,FALSE),"") -> £306.92
C39: =('Employee information'!$A$3) -> [Company Name]
C40: Period: | D40: ='Payroll calculator'!$K$2 -> 4568800.00% | E40: Employee Name | F40: =IFERROR(VLOOKUP(H40,Table1[],2),"") ->  | G40: Employee ID
C42: Tax Status | D42: =IFERROR(VLOOKUP(H40,Table1[],4),"") ->  | E42: Tax Allowance (if applicable) | F42: =IFERROR(VLOOKUP(H40,Table1[],5,FALSE),"") ->  | G42: Hours Worked | H42: =IFERROR(VLOOKUP(H40,Table2[],3,FALSE),"") -> 
C43: Hourly Rate | D43: =IFERROR(VLOOKUP(H40,Table1[],3,FALSE),"") ->  | E43: Overtime Rate | F43: =IFERROR(VLOOKUP(H40,Table2[],7,FALSE),"") ->  | G43: Sick Hours | H43: =IFERROR(VLOOKUP(H40,Table2[],5,FALSE),"") -> 
C44: National Insurance | D44: =IFERROR(IFERROR(VLOOKUP(H40,Table1[],8,FALSE),"")*H46,"") ->  | E44: Income Tax | F44: =IFERROR(IFERROR(VLOOKUP(H40,Table1[],7,FALSE),"")*H46,"") ->  | G44: Holiday Hours | H44: =IFERROR(VLOOKUP(H40,Table2[],4,FALSE),"") -> 
C45: Medical Insurance | D45: =IFERROR(IFERROR(VLOOKUP(H40,Table1[],9,FALSE),"")*H46,"") ->  | E45: Student loan | F45: =IFERROR(IFERROR(VLOOKUP(H40,Table1[],6,FALSE),"")*H46,"") ->  | G45: Overtime Hours | H45: =IFERROR(VLOOKUP(H40,Table2[],6,FALSE),"") -> 
C46: Insurance Deduction | D46: =IFERROR(VLOOKUP(H40,Table1[],11,FALSE),"") ->  | E46: Other Regular Deduction | F46: =IFERROR(VLOOKUP(H40,Table1[],12,FALSE),"") ->  | G46: Gross Pay | H46: =IFERROR(VLOOKUP(H40,Table2[],8,FALSE),"") -> 
C47: Total Taxes and Regular Deductions | D47: =IFERROR(SUM(F44:F46)+SUM(D44:D46),"") -> 0 | E47: Other Deduction | F47: =IFERROR(VLOOKUP(H40,Table2[],10,FALSE),"") ->  | G47: Total Taxes and Deductions | H47: =IFERROR(IFERROR(VLOOKUP(H40,Table2[],9,FALSE),"")+F47,"") -> 
G48: Net Pay | H48: =IFERROR(VLOOKUP(H40,Table2[],11,FALSE),"") -> 
